[Event "8th Gibraltar U16-Junior 2018"]
[Site "Caleta"]
[Date "2018.08.20"]
[Round "6"]
[White "Patel, Devan"]
[Black "Shepherd, Tom"]
[Result "0-1"]
[ECO "D24"]
[WhiteElo "1716"]
[BlackElo "1531"]
[Annotator "NA RC"]
[PlyCount "61"]
[EventDate "2018.08.17"]
[EventType "swiss"]
[EventCountry "GGB"]
[SourceTitle "playchess.com"]
[Source "ChessBase"]
[SourceQuality "1"]
[TimeControl "6600+10"]

1. d4 {[%emt 0:00:00]} d5 {[%emt 0:00:00]} 2. Nf3 {[%emt 0:00:16]} Nf6 {[%emt 0:00:00]} 3. c4 {[%emt 0:00:24]} dxc4 {[%emt 0:00:00]} 4. Nc3 {[%emt 0:00:14]} a6 {[%emt 0:00:32]} 5. a4 {[%emt 0:00:44]} Nc6 {[%emt 0:01:08]} 6. e4 {[%emt 0:00:45]} Na5 {[%emt 0:00:45]} 7. Be2 {[%emt 0:09:23]} e6 {[%emt 0:05:52]} 8. O-O {[%emt 0:01:36]} Nb3 {[%emt 0:03:48]} 9. Ra2 {[%emt 0:01:42]} Nxc1 {[%emt 0:02:10]} 10. Qxc1 {[%emt 0:00:04]} c5 {[%emt 0:00:40]} 11. Rd1 {[%emt 0:03:52]} Qc7 {[%emt 0:01:58]} 12. Bxc4 {[%emt 0:16:07]} cxd4 {[%emt 0:13:55]} 13. Nb5 {[%emt 0:06:29]} Qb6 {[%emt 0:02:54]} 14. Nc7+ {[%emt 0:04:14]} Qxc7 {[%emt 0:00:07]} 15. Bb5+ {[%emt 0:00:17]} Kd8 {[%emt 0:00:08]} 16. Rxd4+ {[%emt 0:02:44]} Nd7 {[%emt 0:03:14]} 17. Qxc7+ {[%emt 0:05:49]} Kxc7 {[%emt 0:00:12]} 18. Bxd7 {[%emt 0:00:16]} Bxd7 {[%emt 0:00:22]} 19. Ne5 {[%emt 0:00:08]} Bc6 {[%emt 0:03:27]} 20. Nxf7 {[%emt 0:00:18]} Bc5 {[%emt 0:02:17]} 21. Rc4 {[%emt 0:00:18]} Bxf2+ {[%emt 0:00:52]} 22. Kxf2 {[%emt 0:00:02]} Rhf8 {[%emt 0:00:08]} 23. b4 {[%emt 0:00:21]} Rxf7+ {[%emt 0:00:10]} 24. Ke3 {[%emt 0:00:03]} Kd6 {[%emt 0:02:20]} 25. b5 {[%emt 0:01:35]} axb5 {[%emt 0:01:04]} 26. Rd2+ {[%emt 0:00:04]} Ke7 {[%emt 0:02:13]} 27. axb5 {[%emt 0:00:14]} Ra3+ {[%emt 0:00:52]} 28. Kd4 {[%emt 0:00:16]} Bxb5 {[%emt 0:00:45]} 29. Rc7+ {[%emt 0:00:09]} Kf8 {[%emt 0:00:22]} 30. Rc8+ {[%emt 0:00:10]} Be8 {[%emt 0:00:05]} 31. Kc5 {[%emt 0:00:14]} 0-1

[Event "8th Gibraltar U16-Junior 2018"]
[Site "Caleta"]
[Date "2018.08.20"]
[Round "6"]
[White "Cortes Villa, Jaime"]
[Black "Seleznev, Egor"]
[Result "0-1"]
[ECO "D35"]
[WhiteElo "1700"]
[BlackElo "1388"]
[Annotator "NA RC"]
[PlyCount "162"]
[EventDate "2018.08.17"]
[EventType "swiss"]
[EventCountry "GGB"]
[SourceTitle "playchess.com"]
[Source "ChessBase"]
[SourceQuality "1"]
[TimeControl "6600+10"]

1. d4 {[%emt 0:00:00]} d5 {[%emt 0:00:05]} 2. c4 {[%emt 0:00:04]} e6 {[%emt 0:00:13]} 3. Nc3 {[%emt 0:00:06]} Nf6 {[%emt 0:00:19]} 4. cxd5 {[%emt 0:00:17]} exd5 {[%emt 0:00:35]} 5. Bg5 {[%emt 0:00:29]} Nbd7 {[%emt 0:01:15]} 6. Nxd5 {[%emt 0:00:47]} Nxd5 {[%emt 0:00:24]} 7. Bxd8 {[%emt 0:01:32]} Bb4+ {[%emt 0:00:12]} 8. Qd2 {[%emt 0:00:05]} Bxd2+ {[%emt 0:00:17]} 9. Kxd2 {[%emt 0:00:06]} Kxd8 {[%emt 0:00:12]} 10. e4 {[%emt 0:00:09]} Ne7 {[%emt 0:01:01]} 11. Bc4 {[%emt 0:00:23]} f6 {[%emt 0:01:32]} 12. f4 {[%emt 0:00:35]} c6 {[%emt 0:01:33]} 13. Nf3 {[%emt 0:01:28]} Nb6 {[%emt 0:04:25]} 14. b3 {[%emt 0:00:53]} Nxc4+ {[%emt 0:01:18]} 15. bxc4 {[%emt 0:00:06]} Bg4 {[%emt 0:00:45]} 16. d5 {[%emt 0:00:53]} Bxf3 {[%emt 0:01:53]} 17. gxf3 {[%emt 0:00:06]} Ng6 {[%emt 0:01:24]} 18. Ke3 {[%emt 0:00:13]} Kc7 {[%emt 0:02:35]} 19. Rac1 {[%emt 0:00:52]} Rad8 {[%emt 0:03:22]} 20. Rhg1 {[%emt 0:01:52]} Rhg8 {[%emt 0:00:43]} 21. Rc2 {[%emt 0:03:33]} Rd7 {[%emt 0:02:42]} 22. Rd1 {[%emt 0:15:52]} Rc8 {[%emt 0:07:03]} 23. Rdc1 {[%emt 0:02:26]} Kd8 {[%emt 0:01:46]} 24. f5 {[%emt 0:08:03]} Nf8 {[%emt 0:02:47]} 25. f4 {[%emt 0:13:05]} cxd5 {[%emt 0:05:18]} 26. cxd5 {[%emt 0:00:07]} Rdc7 {[%emt 0:01:32]} 27. Rxc7 {[%emt 0:00:24]} Rxc7 {[%emt 0:00:07]} 28. Rg1 {[%emt 0:08:26]} g6 {[%emt 0:03:43]} 29. fxg6 {[%emt 0:00:12]} hxg6 {[%emt 0:00:42]} 30. Rg2 {[%emt 0:06:40]} Rc3+ {[%emt 0:03:17]} 31. Kd4 {[%emt 0:04:00]} Rf3 {[%emt 0:01:20]} 32. f5 {[%emt 0:06:13]} g5 {[%emt 0:06:44]} 33. Rb2 {[%emt 0:02:53]} b6 {[%emt 0:00:36]} 34. Rc2 {[%emt 0:00:09]} Nd7 {[%emt 0:01:48]} 35. d6 {[%emt 0:12:45]} Nc5 {[%emt 0:01:18]} 36. Rd2 {[%emt 0:01:07]} Kd7 {[%emt 0:00:35]} 37. h4 {[%emt 0:03:36]} gxh4 {[%emt 0:01:28]} 38. Rg2 {[%emt 0:00:10]} Kxd6 {[%emt 0:00:32]} 39. Rg6 {[%emt 0:00:14]} Nd7 {[%emt 0:00:32]} 40. e5+ {[%emt 0:00:18]} Ke7 {[%emt 0:02:56]} 41. Rg7+ {[%emt 0:00:18]} Ke8 {[%emt 0:02:40]} 42. e6 {[%emt 0:02:35]} Ne5 {[%emt 0:01:30]} 43. Ke4 {[%emt 0:00:55]} Ra3 {[%emt 0:02:05]} 44. Rb7 {[%emt 0:00:57]} h3 {[%emt 0:02:27]} 45. Rb8+ {[%emt 0:02:02]} Ke7 {[%emt 0:01:37]} 46. Rb7+ {[%emt 0:00:02]} Kd6 {[%emt 0:00:34]} 47. e7 {[%emt 0:03:58]} Ng4 {[%emt 0:06:54]} 48. e8=N+ {[%emt 0:01:01]} Kc6 {[%emt 0:00:25]} 49. Rc7+ {[%emt 0:00:04]} Kb5 {[%emt 0:00:50]} 50. Nd6+ {[%emt 0:00:01]} Ka6 {[%emt 0:02:11]} 51. Rh7 {[%emt 0:01:30]} h2 {[%emt 0:00:35]} 52. Kf4 {[%emt 0:00:52]} Ra4+ {[%emt 0:01:50]} 53. Kg3 {[%emt 0:00:32]} b5 {[%emt 0:02:52]} 54. Nc8 {[%emt 0:00:21]} Ka5 {[%emt 0:01:17]} 55. Nxa7 {[%emt 0:00:12]} b4 {[%emt 0:02:42]} 56. Nc6+ {[%emt 0:00:55]} Kb6 {[%emt 0:00:57]} 57. Nd4 {[%emt 0:00:05]} Ne3 {[%emt 0:02:24]} 58. Kxh2 {[%emt 0:00:03]} Rxa2+ {[%emt 0:00:25]} 59. Kg3 Nd5 {[%emt 0:00:41]} 60. Rh8 {[%emt 0:00:18]} Ra3+ {[%emt 0:00:34]} 61. Kf2 {[%emt 0:00:04]} Kc5 {[%emt 0:01:19]} 62. Ne6+ {[%emt 0:00:01]} Kd6 {[%emt 0:00:34]} 63. Rd8+ {[%emt 0:00:03]} Ke5 {[%emt 0:00:31]} 64. Ng7 {[%emt 0:00:28]} b3 {[%emt 0:01:11]} 65. Rb8 {[%emt 0:00:23]} Ra2+ {[%emt 0:00:54]} 66. Kf3 {[%emt 0:00:17]} b2 {[%emt 0:00:55]} 67. Rb5 {[%emt 0:01:01]} Ra3+ {[%emt 0:01:42]} 68. Kf2 {[%emt 0:00:08]} Ra2 {[%emt 0:01:52]} 69. Kf3 {[%emt 0:00:01]} Kd6 {[%emt 0:01:04]} 70. Ne8+ {[%emt 0:00:34]} Kc6 {[%emt 0:00:32]} 71. Rb3 {[%emt 0:00:06]} Ra3 {[%emt 0:00:13]} 72. Rxa3 {[%emt 0:00:06]} b1=Q {[%emt 0:00:04]} 73. Ra6+ {[%emt 0:00:06]} Kb5 {[%emt 0:00:18]} 74. Nc7+ {[%emt 0:00:35]} Nxc7 {[%emt 0:00:09]} 75. Rxf6 {[%emt 0:00:02]} Qd3+ {[%emt 0:00:08]} 76. Kg4 {[%emt 0:00:01]} Qe4+ {[%emt 0:00:08]} 77. Kg5 {[%emt 0:00:02]} Nd5 {[%emt 0:00:23]} 78. Re6 {[%emt 0:00:11]} Qg2+ {[%emt 0:00:44]} 79. Kh6 {[%emt 0:00:10]} Qh3+ {[%emt 0:00:33]} 80. Kg5 {[%emt 0:00:29]} Qg3+ {[%emt 0:00:11]} 81. Kh5 {[%emt 0:00:12]} Nf4+ {[%emt 0:00:02]} 0-1

[Event "8th Gibraltar U16-Junior 2018"]
[Site "Caleta"]
[Date "2018.08.20"]
[Round "6"]
[White "Onslow, Teddy"]
[Black "Lovell, William Pm"]
[Result "1/2-1/2"]
[ECO "D02"]
[WhiteElo "1669"]
[BlackElo "1783"]
[Annotator "NA RC"]
[PlyCount "60"]
[EventDate "2018.08.17"]
[EventType "swiss"]
[EventCountry "GGB"]
[SourceTitle "playchess.com"]
[Source "ChessBase"]
[SourceQuality "1"]
[TimeControl "6600+10"]

1. d4 {[%emt 0:00:00]} d5 {[%emt 0:00:00]} 2. Bf4 {[%emt 0:00:00]} Nf6 {[%emt 0:00:00]} 3. e3 {[%emt 0:00:04]} c5 {[%emt 0:00:02]} 4. c3 {[%emt 0:00:03]} Nc6 {[%emt 0:00:06]} 5. Bd3 {[%emt 0:00:05]} g6 {[%emt 0:00:09]} 6. Nf3 {[%emt 0:01:00]} Bg7 {[%emt 0:00:07]} 7. Nbd2 {[%emt 0:00:49]} O-O {[%emt 0:00:17]} 8. h3 {[%emt 0:00:14]} Nd7 {[%emt 0:00:37]} 9. O-O {[%emt 0:03:55]} e5 {[%emt 0:04:13]} 10. dxe5 {[%emt 0:00:34]} Ndxe5 {[%emt 0:00:25]} 11. Nxe5 {[%emt 0:00:28]} Bxe5 {[%emt 0:03:30]} 12. Bxe5 {[%emt 0:01:56]} Nxe5 {[%emt 0:00:09]} 13. Bc2 {[%emt 0:01:18]} Be6 {[%emt 0:02:47]} 14. Nf3 {[%emt 0:03:54]} Qf6 {[%emt 0:04:50]} 15. Nxe5 {[%emt 0:03:14]} Qxe5 {[%emt 0:00:02]} 16. Re1 {[%emt 0:02:56]} Rad8 {[%emt 0:01:51]} 17. Qf3 {[%emt 0:10:53]} Qc7 {[%emt 0:03:58]} 18. Re2 {[%emt 0:32:48]} d4 {[%emt 0:07:19]} 19. exd4 {[%emt 0:03:51]} cxd4 {[%emt 0:00:46]} 20. cxd4 {[%emt 0:00:29]} Rxd4 {[%emt 0:00:31]} 21. Bb3 {[%emt 0:01:52]} Bxb3 {[%emt 0:10:43]} 22. Qxb3 {[%emt 0:01:07]} Rfd8 {[%emt 0:01:28]} 23. Rae1 {[%emt 0:02:20]} R8d7 {[%emt 0:03:06]} 24. Qc2 {[%emt 0:10:02]} Qxc2 {[%emt 0:16:18]} 25. Rxc2 {[%emt 0:00:10]} Rd2 {[%emt 0:03:47]} 26. Re2 {[%emt 0:00:08]} Rxc2 {[%emt 0:03:32]} 27. Rxc2 {[%emt 0:00:14]} f5 {[%emt 0:07:44]} 28. g3 {[%emt 0:06:37]} Kf7 {[%emt 0:04:16]} 29. h4 {[%emt 0:02:43]} Kf6 {[%emt 0:02:03]} 30. Kg2 {[%emt 0:06:56]} Re7 {[%emt 0:01:50]} 1/2-1/2

[Event "8th Gibraltar U16-Junior 2018"]
[Site "Caleta"]
[Date "2018.08.20"]
[Round "6"]
[White "Krivenko, Dion"]
[Black "Diaz Mino, Pablo"]
[Result "1/2-1/2"]
[ECO "C47"]
[WhiteElo "1635"]
[BlackElo "2052"]
[Annotator "NA RC"]
[PlyCount "63"]
[EventDate "2018.08.17"]
[EventType "swiss"]
[EventCountry "GGB"]
[SourceTitle "playchess.com"]
[Source "ChessBase"]
[SourceQuality "1"]
[TimeControl "6600+10"]

{[%evp 9,62,2,2,0,-2,-5,0,-14,0,-6,-7,7,3,0,2,8,1,17,40,21,62,51,82,58,123,32767,32,17,32,29,21,23,23,11,64,51,64,0,23,10,40,15,19,10,0,0,34,32,32,0,0,-114,-90,-111,121]} 1. e4 {[%emt 0:00:00]} e5 {[%emt 0:00:00]} 2. Nf3 {[%emt 0:00:00]} Nc6 {[%emt 0:00:04]} 3. d4 {[%emt 0:00:04]} exd4 {[%emt 0:00:05]} 4. Nxd4 {[%emt 0:00:04]} Bb4+ {[%emt 0:01:18]} 5. Nc3 {[%emt 0:02:09]} Nf6 {[%emt 0:01:11]} 6. Nxc6 {[%emt 0:04:26]} bxc6 {[%emt 0:03:16]} 7. Bd3 {[%emt 0:04:40]} d5 {[%emt 0:05:32]} 8. exd5 {[%emt 0:01:56]} O-O {[%emt 0:06:17]} 9. O-O {[%emt 0:02:03]} cxd5 {[%emt 0:05:29]} 10. Bg5 {[%emt 0:02:26]} c6 {[%emt 0:00:37]} 11. Qf3 {[%emt 0:05:27]} ({Reject} 11. Bxf6 Qxf6 12. Ne2 Rb8 $17) 11... Be7 {[%emt 0:01:01]} 12. h3 {[%emt 0:05:16] LiveBook: 135 Games} Be6 {[%emt 0:03:16]} 13. Ne2 {[%emt 0:06:53]} Rb8 {[%emt 0:02:28] C47: Scotch Four Knights and Four Knights with 4 g3} 14. Nd4 {[%emt 0:09:46]} Qd7 {[%emt 0:01:25]} 15. b3 {[%emt 0:05:34]} h6 {[%emt 0:25:03]} 16. Bd2 $146 {[%emt 0:13:43]} ({Reject} 16. Nxe6 fxe6 17. Be3 Bd6 $11) ({Predecessor:} 16. Bh4 Rfe8 17. Rfe1 Nh7 18. Bxe7 Rxe7 19. Bxh7+ Kxh7 {1-0 (28) Kaufman,L (2430)-Chudnovsky,J (2285) Philadelphia 1995}) 16... Nh7 {[%emt 0:13:27]} (16... Rbe8 $14) 17. Bxh7+ {[%emt 0:06:42]} (17. Rae1 $16) 17... Kxh7 {[%emt 0:00:05]} 18. Rfe1 {[%emt 0:02:36]} Bf6 {[%emt 0:01:32]} 19. Nxe6 {[%emt 0:05:18]} fxe6 {[%emt 0:00:05]} 20. Qd3+ {[%emt 0:01:00]} Kg8 {[%emt 0:00:39]} 21. Rad1 {[%emt 0:00:42]} Rfe8 {[%emt 0:00:42]} 22. Qg3 {[%emt 0:00:53]} Kh7 {[%emt 0:01:01]} 23. Qd3+ {[%emt 0:00:40]} (23. Bc3 $14) 23... Kh8 {[%emt 0:05:40]} 24. Qg6 {[%emt 0:00:51]} Rf8 {[%emt 0:01:09]} 25. Re2 {[%emt 0:01:20]} (25. Bf4 $5 {[%cal Rf4b8]}) 25... Rbe8 {[%emt 0:00:35]} 26. Rde1 {[%emt 0:03:09]} e5 {[%emt 0:02:58]} 27. Bb4 {[%emt 0:00:58]} Rg8 {[%emt 0:01:19]} 28. Bc3 {[%emt 0:02:03]} Qd6 {[%emt 0:06:38]} 29. Bd2 {[%emt 0:00:59]} Re7 {[%emt 0:00:45]} 30. g4 {[%emt 0:07:05]} (30. Qg3 $11) 30... Re6 {[%emt 0:04:21]} 31. Qh5 {[%emt 0:03:32]} Qe7 $16 {[%emt 0:02:28]} (31... e4 $17 {hält den Druck.} 32. Kh1 Bd8) 32. g5 {[%emt 0:02:38]} 1/2-1/2

[Event "8th Gibraltar U16-Junior 2018"]
[Site "Caleta"]
[Date "2018.08.20"]
[Round "6"]
[White "Cox, Toby"]
[Black "Bansal, Saahil"]
[Result "1/2-1/2"]
[ECO "C00"]
[WhiteElo "1479"]
[BlackElo "1454"]
[Annotator "NA RC"]
[PlyCount "75"]
[EventDate "2018.08.17"]
[EventType "swiss"]
[EventCountry "GGB"]
[SourceTitle "playchess.com"]
[Source "ChessBase"]
[SourceQuality "1"]
[TimeControl "6600+10"]

1. e4 {[%emt 0:00:00]} e6 {[%emt 0:00:00]} 2. Nf3 {[%emt 0:00:00]} d5 {[%emt 0:00:15]} 3. e5 {[%emt 0:00:01]} c5 {[%emt 0:00:12]} 4. b4 {[%emt 0:00:06]} cxb4 {[%emt 0:02:54]} 5. d4 {[%emt 0:00:08]} Nc6 {[%emt 0:01:45]} 6. a3 {[%emt 0:00:05]} bxa3 {[%emt 0:00:49]} 7. c3 {[%emt 0:00:08]} Bd7 {[%emt 0:14:11]} 8. Bxa3 {[%emt 0:02:33]} Bxa3 {[%emt 0:00:25]} 9. Nxa3 {[%emt 0:00:04]} a6 {[%emt 0:00:15]} 10. Bd3 {[%emt 0:01:43]} Nge7 {[%emt 0:02:56]} 11. O-O {[%emt 0:00:09]} O-O {[%emt 0:04:13]} 12. c4 {[%emt 0:00:11]} h6 {[%emt 0:03:59]} 13. Nd2 {[%emt 0:09:07]} Nxd4 {[%emt 0:01:51]} 14. cxd5 {[%emt 0:00:11]} Nxd5 {[%emt 0:01:03]} 15. Ndc4 {[%emt 0:03:17]} Nb5 {[%emt 0:03:18]} 16. Nxb5 {[%emt 0:01:09]} Bxb5 {[%emt 0:00:38]} 17. Nd6 {[%emt 0:00:06]} Bxd3 {[%emt 0:01:00]} 18. Qxd3 {[%emt 0:00:04]} b5 {[%emt 0:02:10]} 19. Rfd1 {[%emt 0:05:07]} Qg5 {[%emt 0:03:22]} 20. Re1 {[%emt 0:01:51]} Rfd8 {[%emt 0:03:31]} 21. Qf3 {[%emt 0:03:23]} f6 {[%emt 0:07:20]} 22. Nb7 {[%emt 0:01:17]} Rdb8 {[%emt 0:02:18]} 23. Nc5 {[%emt 0:00:12]} fxe5 {[%emt 0:00:46]} 24. Nxe6 {[%emt 0:00:34]} e4 {[%emt 0:00:48]} 25. Qxe4 {[%emt 0:01:02]} Qh5 {[%emt 0:13:55]} 26. g4 {[%emt 0:00:07]} Qh4 {[%emt 0:00:59]} 27. Qxd5 {[%emt 0:00:08]} Qxg4+ {[%emt 0:00:07]} 28. Qg2 {[%emt 0:00:47]} Qxg2+ {[%emt 0:00:07]} 29. Kxg2 {[%emt 0:00:04]} a5 {[%emt 0:00:24]} 30. Nd4 {[%emt 0:01:10]} Rb6 {[%emt 0:03:08]} 31. Re5 {[%emt 0:00:41]} a4 {[%emt 0:02:14]} 32. Rxb5 {[%emt 0:00:58]} Rba6 {[%emt 0:00:34]} 33. Rb4 {[%emt 0:00:52]} a3 {[%emt 0:00:05]} 34. Nc2 {[%emt 0:00:26]} a2 {[%emt 0:00:53]} 35. Rb2 {[%emt 0:00:24]} Ra4 {[%emt 0:00:07]} 36. Nb4 {[%emt 0:02:15]} Rb8 {[%emt 0:00:04]} 37. Nd3 {[%emt 0:00:01]} Rba8 {[%emt 0:00:03]} 38. Nc1 1/2-1/2

[Event "8th Gibraltar U16-Junior 2018"]
[Site "Caleta"]
[Date "2018.08.20"]
[Round "6"]
[White "Manocha, Shobhin"]
[Black "Cox, Ben"]
[Result "1-0"]
[ECO "B70"]
[WhiteElo "1461"]
[BlackElo "1466"]
[Annotator "NA RC"]
[PlyCount "97"]
[EventDate "2018.08.17"]
[EventType "swiss"]
[EventCountry "GGB"]
[SourceTitle "playchess.com"]
[Source "ChessBase"]
[SourceQuality "1"]
[TimeControl "6600+10"]

1. e4 {[%emt 0:00:00]} c5 {[%emt 0:00:00]} 2. Nf3 {[%emt 0:00:00]} d6 {[%emt 0:00:00]} 3. d4 {[%emt 0:00:06]} cxd4 {[%emt 0:00:00]} 4. Nxd4 {[%emt 0:00:09]} Nf6 {[%emt 0:00:03]} 5. Nc3 {[%emt 0:00:07]} g6 {[%emt 0:00:19]} 6. Be2 {[%emt 0:00:10]} Bg7 {[%emt 0:00:04]} 7. O-O {[%emt 0:00:11]} O-O {[%emt 0:00:29]} 8. Bg5 {[%emt 0:00:21]} Nc6 {[%emt 0:00:49]} 9. Nb3 {[%emt 0:00:05]} a5 {[%emt 0:02:03]} 10. a4 {[%emt 0:01:32]} Nb4 {[%emt 0:00:47]} 11. f4 {[%emt 0:01:30]} Bd7 {[%emt 0:05:38]} 12. Kh1 {[%emt 0:00:56]} Rc8 {[%emt 0:01:10]} 13. Bf3 {[%emt 0:02:22]} Qc7 {[%emt 0:08:30]} 14. Qd2 {[%emt 0:07:18]} Bc6 {[%emt 0:04:34]} 15. Rfe1 {[%emt 0:10:07]} Rfd8 {[%emt 0:02:06]} 16. Qf2 {[%emt 0:04:35]} d5 {[%emt 0:11:12]} 17. e5 {[%emt 0:02:52]} Ne4 {[%emt 0:06:35]} 18. Bxe4 {[%emt 0:02:18]} dxe4 {[%emt 0:01:21]} 19. Rac1 {[%emt 0:11:43]} f6 {[%emt 0:16:58]} 20. exf6 {[%emt 0:05:50]} exf6 {[%emt 0:00:23]} 21. Bh4 {[%emt 0:00:58]} Re8 {[%emt 0:00:27]} 22. f5 {[%emt 0:01:39]} Qe5 {[%emt 0:05:51]} 23. fxg6 {[%emt 0:04:58]} hxg6 {[%emt 0:02:05]} 24. Qe2 {[%emt 0:06:08]} f5 {[%emt 0:06:39]} 25. Nd2 {[%emt 0:07:43]} Kf7 {[%emt 0:07:31]} 26. Nc4 {[%emt 0:01:09]} Qc7 {[%emt 0:01:17]} 27. Bg3 {[%emt 0:01:09]} Qe7 {[%emt 0:06:20]} 28. Nd6+ {[%emt 0:03:16]} Kf6 {[%emt 0:03:06]} 29. Qd2 {[%emt 0:11:03]} Ke6 {[%emt 0:01:09]} 30. Nxc8 {[%emt 0:02:13]} Rxc8 {[%emt 0:00:12]} 31. Qe2 {[%emt 0:01:24]} Rh8 {[%emt 0:01:14]} 32. Qc4+ {[%emt 0:00:42]} Kd7 {[%emt 0:01:51]} 33. Rcd1+ {[%emt 0:00:44]} Ke8 {[%emt 0:01:04]} 34. Nb5 {[%emt 0:01:04]} Bxb5 {[%emt 0:01:35]} 35. Qxb5+ {[%emt 0:00:36]} Nc6 {[%emt 0:00:43]} 36. Rd6 {[%emt 0:02:42]} Be5 {[%emt 0:02:01]} 37. Rxc6 {[%emt 0:01:49]} bxc6 {[%emt 0:00:25]} 38. Qxe5 {[%emt 0:00:53]} Qxe5 {[%emt 0:00:34]} 39. Bxe5 {[%emt 0:00:06]} Rh7 {[%emt 0:00:01]} 40. h3 {[%emt 0:01:24]} Re7 {[%emt 0:01:12]} 41. Bc3 {[%emt 0:00:41]} Ra7 {[%emt 0:00:43]} 42. Kh2 {[%emt 0:00:36]} Ke7 {[%emt 0:00:12]} 43. Kg3 {[%emt 0:00:31]} Ke6 {[%emt 0:00:57]} 44. Kf4 {[%emt 0:00:39]} Rb7 {[%emt 0:01:19]} 45. Rd1 {[%emt 0:00:37]} c5 {[%emt 0:00:31]} 46. Rd8 {[%emt 0:00:28]} Kf7 {[%emt 0:00:36]} 47. Rc8 {[%emt 0:00:43]} Re7 {[%emt 0:00:20]} 48. Rxc5 {[%emt 0:00:40]} e3 {[%emt 0:00:20]} 49. Re5 {[%emt 0:00:41]} 1-0

[Event "8th Gibraltar U16-Junior 2018"]
[Site "Caleta"]
[Date "2018.08.20"]
[Round "6"]
[White "Le Barbier, Vincent"]
[Black "Dharmasena, Gavith"]
[Result "0-1"]
[ECO "C50"]
[WhiteElo "1457"]
[BlackElo "1433"]
[Annotator "NA RC"]
[PlyCount "118"]
[EventDate "2018.08.17"]
[EventType "swiss"]
[EventCountry "GGB"]
[SourceTitle "playchess.com"]
[Source "ChessBase"]
[SourceQuality "1"]
[TimeControl "6600+10"]

1. e4 {[%emt 0:00:00]} e5 {[%emt 0:00:00]} 2. Nf3 {[%emt 0:00:00]} Nc6 {[%emt 0:00:02]} 3. Bc4 {[%emt 0:00:05]} Bc5 {[%emt 0:00:04]} 4. Nc3 {[%emt 0:00:30]} Nf6 {[%emt 0:00:27]} 5. d3 {[%emt 0:00:07]} d6 {[%emt 0:00:17]} 6. Bg5 {[%emt 0:00:10]} h6 {[%emt 0:00:06]} 7. Bh4 {[%emt 0:00:12]} g5 {[%emt 0:00:09]} 8. Bg3 {[%emt 0:00:19]} Bg4 {[%emt 0:00:22]} 9. Bb5 {[%emt 0:00:45]} Qd7 {[%emt 0:01:17]} 10. Bxc6 {[%emt 0:01:10]} Qxc6 {[%emt 0:00:15]} 11. h3 {[%emt 0:00:26]} Be6 {[%emt 0:00:32]} 12. Qe2 {[%emt 0:01:40]} Qb6 {[%emt 0:01:00]} 13. Na4 {[%emt 0:01:06]} Qb4+ {[%emt 0:00:06]} 14. Qd2 {[%emt 0:01:35]} Qxa4 {[%emt 0:00:21]} 15. O-O {[%emt 0:01:00]} Nh5 {[%emt 0:00:15]} 16. Kh2 {[%emt 0:01:07]} O-O-O {[%emt 0:00:34]} 17. b3 {[%emt 0:00:20]} Qb5 {[%emt 0:02:25]} 18. a4 {[%emt 0:00:41]} Qc6 {[%emt 0:01:10]} 19. Rac1 {[%emt 0:01:07]} Nxg3 {[%emt 0:00:16]} 20. fxg3 {[%emt 0:00:24]} Qb6 {[%emt 0:00:36]} 21. Rfe1 {[%emt 0:01:21]} Qb4 {[%emt 0:00:56]} 22. Qd1 {[%emt 0:01:36]} g4 {[%emt 0:01:25]} 23. Nh4 {[%emt 0:01:27]} gxh3 {[%emt 0:00:24]} 24. gxh3 {[%emt 0:01:05]} Rdg8 {[%emt 0:00:20]} 25. Qf3 {[%emt 0:01:44]} Qd2+ {[%emt 0:00:33]} 26. Ng2 {[%emt 0:00:57]} Qf2 {[%emt 0:00:46]} 27. Qxf2 {[%emt 0:00:54]} Bxf2 {[%emt 0:00:05]} 28. Re2 {[%emt 0:00:07]} Bxg3+ {[%emt 0:00:07]} 29. Kh1 {[%emt 0:00:51]} Bxh3 {[%emt 0:00:09]} 30. Rg1 {[%emt 0:01:08]} Bg4 {[%emt 0:01:12]} 31. Rd2 {[%emt 0:00:40]} Bf3 {[%emt 0:00:30]} 32. c4 {[%emt 0:00:36]} h5 {[%emt 0:00:31]} 33. Rf1 {[%emt 0:00:48]} Bf4 {[%emt 0:00:33]} 34. Rdf2 {[%emt 0:00:47]} Bxg2+ {[%emt 0:00:16]} 35. Rxg2 {[%emt 0:00:08]} h4 {[%emt 0:00:11]} 36. Rfg1 {[%emt 0:00:19]} Rxg2 {[%emt 0:00:11]} 37. Rxg2 {[%emt 0:00:03]} h3 {[%emt 0:00:08]} 38. Rg7 {[%emt 0:00:34]} h2 {[%emt 0:00:10]} 39. b4 {[%emt 0:00:24]} Rh3 {[%emt 0:00:19]} 40. b5 {[%emt 0:00:43]} Rxd3 {[%emt 0:00:11]} 41. Rh7 {[%emt 0:01:02]} Rd1+ {[%emt 0:00:11]} 42. Kg2 {[%emt 0:00:02]} Rg1+ {[%emt 0:00:08]} 43. Kf3 {[%emt 0:00:53]} h1=Q+ {[%emt 0:00:07]} 44. Rxh1 {[%emt 0:00:08]} Rxh1 {[%emt 0:00:10]} 45. a5 {[%emt 0:00:09]} Rh3+ {[%emt 0:00:14]} 46. Kg4 {[%emt 0:00:03]} Rc3 {[%emt 0:00:16]} 47. b6 {[%emt 0:00:16]} cxb6 {[%emt 0:00:21]} 48. axb6 {[%emt 0:00:03]} a5 {[%emt 0:00:07]} 49. c5 {[%emt 0:00:40]} Rxc5 {[%emt 0:00:06]} 50. Kf5 {[%emt 0:00:49]} a4 {[%emt 0:00:40]} 51. Kf6 {[%emt 0:00:00]} a3 {[%emt 0:00:07]} 52. Kxf7 {[%emt 0:00:02]} a2 {[%emt 0:00:05]} 53. Kf6 {[%emt 0:00:05]} Bg5+ {[%emt 0:00:07]} 54. Kxg5 {[%emt 0:00:19]} a1=Q {[%emt 0:00:09]} 55. Kf6 {[%emt 0:00:11]} Qf1+ {[%emt 0:00:07]} 56. Ke6 {[%emt 0:00:12]} Rc6 {[%emt 0:00:28]} 57. Kd5 {[%emt 0:00:19]} Qf2 {[%emt 0:00:12]} 58. Ke6 {[%emt 0:00:04]} d5+ {[%emt 0:00:24]} 59. Kxd5 {[%emt 0:00:06]} Qd4# {[%emt 0:00:06] Kxd4 [%clk 01:25:12] [%emt 00:00:05]} 0-1